bitfinex/quotes_BTCUSD_20240823
["timestamp","ask_amount","ask_price","bid_price","bid_amount"]
[1724427634385,0.0002,61819.0,61818.0,1.55743471]
[1724427634813,0.0002,61819.0,61818.0,1.54343471]
[1724427635030,0.0083,61819.0,61818.0,2.20449471]
[1724427635245,0.00058731,61831.0,61830.0,0.16250973]
[1724427635464,0.009031,61841.0,61830.0,2.02874587]
[1724427635674,0.009031,61841.0,61838.0,0.16248873]
[1724427635885,0.009031,61841.0,61838.0,1.86459835]
[1724427636091,0.009031,61841.0,61838.0,2.34207992]
[1724427636310,0.0002,61859.0,61838.0,2.34207992]
[1724427636311,0.0002,61859.0,61858.0,1.45572073]
[1724427636523,0.0002,61859.0,61858.0,1.48468987]
[1724427636731,0.0002,61859.0,61858.0,1.90801087]
[1724427636945,0.0002,61859.0,61858.0,1.95653856]
[1724427637158,0.00904201,61868.0,61862.0,1.19322673]
[1724427637371,0.00904201,61868.0,61862.0,1.35722971]
[1724427637579,0.00904201,61868.0,61862.0,1.45722971]
[1724427637809,0.09114201,61863.0,61862.0,0.58495]
[1724427638031,0.00904201,61863.0,61858.0,0.03174466]
[1724427638230,0.00904201,61863.0,61862.0,0.16165]
[1724427638466,0.00904201,61863.0,61858.0,0.01974466]
[1724427638674,0.17069101,61863.0,61862.0,0.014]
[1724427638876,0.00904201,61863.0,61862.0,0.014]
[1724427639770,0.25308901,61863.0,61862.0,0.014]
[1724427639968,0.09144201,61863.0,61858.0,0.01974466]
[1724427640171,0.25308901,61863.0,61862.0,0.014]
[1724427640387,0.09144201,61863.0,61862.0,0.014]
[1724427640612,0.09144201,61863.0,61862.0,0.006]
[1724427640817,0.09144201,61863.0,61859.0,0.00077673]
[1724427641035,0.09344201,61863.0,61861.0,0.16242773]
[1724427641238,0.09344201,61863.0,61858.0,0.00574466]
[1724427641446,0.09144201,61863.0,61858.0,0.00574466]
[1724427641654,0.09144201,61863.0,61853.0,0.32412273]
[1724427641920,0.96077901,61863.0,61862.0,0.007]
[1724427642132,1.28607401,61863.0,61862.0,0.007]
[1724427642354,1.28829728,61863.0,61862.0,0.007]
[1724427642557,1.77559526,61863.0,61862.0,0.007]
[1724427642758,1.61627904,61863.0,61862.0,0.007]
[1724427642973,1.61305577,61863.0,61862.0,0.007]
[1724427643205,1.61305577,61863.0,61843.0,0.00456956]
[1724427643206,0.0775,61853.0,61847.0,0.161687]
[1724427643405,0.0775,61853.0,61842.0,0.161701]
[1724427643406,0.161688,61848.0,61842.0,0.161701]
[1724427643650,0.40319298,61847.0,61840.0,0.161706]
[1724427643854,0.24150298,61847.0,61840.0,0.323415]
[1724427644057,0.40319198,61847.0,61840.0,0.161706]
[1724427644258,0.24150298,61847.0,61831.0,0.06988304]
[1724427644476,0.0775,61847.0,61841.0,0.00077673]
[1724427644689,0.0775,61847.0,61846.0,0.485074]
[1724427644914,0.0775,61858.0,61855.0,0.161667]
[1724427645116,0.0775,61858.0,61846.0,0.0653]
[1724427645117,0.0775,61858.0,61857.0,0.161663]
[1724427645325,0.08794201,61863.0,61851.0,0.00077673]
[1724427645540,0.08794201,61863.0,61848.0,0.07597673]
[1724427645965,0.08794201,61863.0,61854.0,0.323339]
[1724427646208,0.08794201,61863.0,61858.0,0.00077673]
[1724427646421,0.08794201,61863.0,61862.0,0.16242673]
[1724427646636,0.08794201,61863.0,61856.0,0.323327]
[1724427646844,0.08794201,61863.0,61861.0,0.00077673]
[1724427647491,0.08794201,61863.0,61847.0,0.10462642]
[1724427647492,0.09094201,61863.0,61853.0,0.323343]
[1724427647691,0.09494201,61863.0,61858.0,0.16166]
[1724427648034,0.09494201,61863.0,61849.0,0.323368]
[1724427648035,0.323313,61860.0,61849.0,0.323368]
[1724427648235,0.16400298,61859.0,61851.0,0.00077673]
[1724427648441,0.16400298,61859.0,61855.0,0.00077673]
[1724427648644,0.16400298,61859.0,61856.0,0.00077673]
[1724427648851,0.32566098,61859.0,61856.0,0.00077673]
[1724427649051,0.161665,61857.0,61856.0,0.000274]
[1724427649371,0.566491,61857.0,61856.0,0.000274]
[1724427649641,0.01904201,61863.0,61856.0,0.000274]
[1724427649862,0.01904201,61863.0,61856.0,0.00105073]
[1724427649863,0.16400298,61862.0,61856.0,0.00105073]
[1724427650071,0.01304201,61863.0,61859.0,0.00077673]
[1724427650282,0.00904201,61863.0,61862.0,0.16242673]
[1724427651122,0.01104201,61863.0,61862.0,0.80902673]
[1724427651323,0.00904201,61863.0,61862.0,1.13232673]
[1724427651532,0.00904201,61863.0,61862.0,1.40079997]
[1724427651533,0.01404201,61863.0,61862.0,1.40079997]
[1724427651952,0.01104201,61863.0,61862.0,1.40079997]
[1724427652160,0.01104201,61863.0,61862.0,0.16612026]
[1724427652360,0.01104201,61863.0,61862.0,0.16689699]
[1724427652780,0.01104201,61863.0,61862.0,0.00447026]
[1724427652781,0.02406897,61863.0,61862.0,0.00447026]
[1724427652982,0.01404201,61863.0,61862.0,0.16242673]
[1724427653231,0.01404201,61863.0,61861.0,0.00077673]
[1724427653692,0.01404201,61863.0,61861.0,0.16242873]
[1724427653918,0.01404201,61863.0,61858.0,0.323319]
[1724427653919,0.01604201,61863.0,61862.0,0.00077673]
[1724427654120,0.01204201,61863.0,61862.0,0.16242673]
[1724427654323,0.00904201,61863.0,61862.0,0.00077673]
[1724427654527,0.22675,61862.0,61861.0,0.011]
[1724427654741,0.55005,61862.0,61861.0,0.011]
[1724427655180,0.79345298,61862.0,61861.0,0.011]
[1724427655381,1.11675298,61862.0,61861.0,0.011]
[1724427655585,0.161663,61857.0,61856.0,0.000274]
[1724427656009,0.77570858,61857.0,61856.0,0.000274]
[1724427656224,1.37704398,61857.0,61856.0,0.000274]
[1724427656433,0.72839198,61857.0,61856.0,0.000274]
[1724427656841,1.05171798,61857.0,61856.0,0.000274]
[1724427657043,0.72839198,61857.0,61856.0,0.000274]
[1724427657491,0.564389,61857.0,61856.0,0.000274]
[1724427657694,0.887715,61857.0,61856.0,0.000274]
[1724427657895,0.568389,61857.0,61856.0,0.000274]
[1724427658309,0.564389,61857.0,61856.0,0.000274]
[1724427658513,0.887715,61857.0,61856.0,0.000274]
[1724427658720,0.891715,61857.0,61856.0,0.000274]
[1724427658928,0.899715,61857.0,61856.0,0.001274]
[1724427659133,1.06371798,61857.0,61856.0,0.001274]
[1724427659247,0.576389,61857.0,61856.0,0.001274]
[1724427659448,0.0914,61857.0,61856.0,0.162939]
[1724427659691,0.012,61857.0,61856.0,0.162939]
[1724427659892,0.012,61857.0,61856.0,0.001274]
[1724427660259,0.008,61857.0,61856.0,0.001274]
[1724427660465,0.0795,61861.0,61856.0,0.000274]
[1724427660666,0.001,61857.0,61856.0,0.161939]
[1724427660938,0.005,61857.0,61856.0,0.000274]
[1724427661068,0.005,61857.0,61856.0,0.81390467]
[1724427661294,0.00904201,61863.0,61858.0,0.161659]
[1724427661491,0.161663,61857.0,61856.0,0.001096]
[1724427661864,1.04891798,61857.0,61856.0,0.002096]
[1724427662216,1.04991798,61857.0,61856.0,0.002096]
[1724427662443,1.05091798,61857.0,61856.0,0.002096]
[1724427662920,1.37424398,61857.0,61856.0,0.002096]
[1724427663117,1.19775798,61857.0,61856.0,0.002096]
[1724427663250,1.58188398,61857.0,61856.0,0.002096]
[1724427663643,1.58166071,61857.0,61856.0,0.001096]
[1724427663857,1.60166071,61857.0,61856.0,0.004096]
[1724427664061,1.13371798,61857.0,61856.0,0.004096]
[1724427664275,0.79139198,61857.0,61856.0,0.001096]
[1724427664513,0.303063,61857.0,61856.0,0.001096]
[1724427664721,0.79839198,61857.0,61856.0,0.001]
[1724427665346,0.311063,61857.0,61856.0,0.001]
[1724427665545,0.0886,61857.0,61856.0,0.001]
[1724427665807,0.250263,61857.0,61856.0,0.001]
[1724427666009,0.012,61857.0,61856.0,0.001]
[1724427667535,0.496989,61857.0,61856.0,0.001]
[1724427668575,0.66099198,61857.0,61856.0,0.001]
[1724427668782,1.07071798,61857.0,61856.0,0.001]
[1724427668991,0.012,61857.0,61856.0,0.001]
[1724427669800,0.173663,61857.0,61856.0,0.001]
[1724427670211,0.173663,61857.0,61847.0,0.0648]
[1724427670212,0.161676,61852.0,61847.0,0.0648]
[1724427670416,0.161673,61854.0,61847.0,0.0648]
[1724427670620,0.32335,61853.0,61847.0,0.00453536]
[1724427670829,0.1313999,61854.0,61847.0,0.00453536]
[1724427671042,0.0825,61854.0,61842.0,0.0614]
[1724427671247,0.0825,61854.0,61843.0,0.00454632]
[1724427671458,0.244173,61854.0,61847.0,0.004]
[1724427671668,0.161679,61851.0,61847.0,0.01]
[1724427671877,0.161686,61848.0,61847.0,0.004]
[1724427672074,0.485059,61848.0,61847.0,0.004]
[1724427672286,0.808432,61848.0,61847.0,0.004]
[1724427672492,0.886432,61848.0,61847.0,0.004]
[1724427672699,1.37580798,61848.0,61847.0,0.004]
[1724427672916,1.76448098,61848.0,61847.0,0.004]
[1724427673127,1.76448098,61848.0,61828.0,0.0005841]
[1724427673128,0.161735,61830.0,61828.0,0.0005841]
[1724427673340,0.161736,61829.0,61828.0,0.0005841]
[1724427673544,0.078,61831.0,61828.0,0.0005841]
[1724427673764,0.161736,61829.0,61828.0,0.0005841]
[1724427673980,0.485208,61829.0,61828.0,0.0005841]
[1724427674394,0.64921098,61829.0,61828.0,0.0005841]
[1724427674847,0.32573898,61829.0,61828.0,0.0005841]
[1724427675042,0.239732,61831.0,61828.0,0.0055841]
[1724427675245,0.239731,61831.0,61828.0,0.0055841]
[1724427675452,0.161726,61833.0,61828.0,0.1673211]
[1724427675657,0.0794,61836.0,61828.0,0.0055841]
[1724427675865,0.32264748,61836.0,61829.0,0.161734]
[1724427676067,0.0794,61836.0,61828.0,0.0055841]
[1724427676283,0.0767,61843.0,61828.0,0.16458708]
[1724427676494,0.0767,61850.0,61836.0,0.323433]
[1724427676701,0.161691,61847.0,61840.0,0.161706]
[1724427676908,0.008,61836.0,61835.0,0.16172]
[1724427677326,0.011,61836.0,61835.0,0.485161]
[1724427677531,0.008,61836.0,61835.0,0.485161]
[1724427678145,0.008,61836.0,61835.0,0.16172]
[1724427678553,0.008,61836.0,61834.0,0.161722]
[1724427678774,0.323417,61840.0,61829.0,0.0759]
[1724427678936,0.243611,61839.0,61833.0,0.161724]
[1724427679260,0.0819,61839.0,61836.0,0.001]
[1724427679693,0.0819,61839.0,61830.0,0.323466]
[1724427679941,0.24361,61839.0,61833.0,0.161723]
[1724427680153,0.003,61840.0,61839.0,0.88725]
[1724427680565,0.003,61840.0,61839.0,1.05125298]
[1724427680972,0.003,61840.0,61839.0,1.37467298]
[1724427681175,0.003,61840.0,61839.0,1.47467298]
[1724427681377,0.161654,61861.0,61847.0,0.951345]
[1724427681562,0.161659,61859.0,61847.0,0.951345]
[1724427681796,0.646635,61859.0,61847.0,0.627967]
[1724427681998,0.323317,61859.0,61847.0,0.951345]
[1724427682199,0.161664,61857.0,61847.0,0.95600665]
[1724427682414,0.323317,61859.0,61847.0,0.95600665]
[1724427682838,0.161662,61858.0,61847.0,0.95600665]
[1724427683057,0.0005,61862.0,61847.0,1.27938465]
[1724427683469,0.002635,61848.0,61847.0,0.98300665]
[1724427684337,0.002635,61848.0,61847.0,0.65962865]
[1724427684745,0.002635,61848.0,61847.0,0.51672865]
[1724427685155,0.002635,61848.0,61847.0,0.51755065]
[1724427685389,0.002635,61848.0,61847.0,0.19417265]
[1724427685813,0.002635,61848.0,61847.0,0.027822]
[1724427686020,0.164321,61848.0,61847.0,0.027822]
[1724427686240,0.002635,61848.0,61847.0,0.027822]
[1724427686825,0.002635,61848.0,61847.0,0.013822]
[1724427687238,0.002635,61848.0,61847.0,0.017822]
[1724427687442,0.002635,61848.0,61847.0,0.013822]
[1724427687762,0.001635,61848.0,61847.0,0.000822]
[1724427687967,0.001635,61848.0,61847.0,0.004822]
[1724427689534,0.65069698,61848.0,61847.0,0.004822]
[1724427689731,1.23114558,61848.0,61847.0,0.004822]
[1724427689960,1.66401007,61848.0,61847.0,0.004822]
[1724427690170,1.59259222,61848.0,61847.0,0.004822]
[1724427690343,1.14121922,61848.0,61847.0,0.004822]
[1724427690542,0.143435,61848.0,61847.0,0.004822]
[1724427690745,0.078535,61848.0,61847.0,0.000822]
[1724427691138,0.092535,61848.0,61847.0,0.002822]
[1724427691541,0.254221,61848.0,61847.0,0.002822]
[1724427691744,0.254221,61848.0,61847.0,0.001822]
[1724427691745,0.242221,61848.0,61847.0,0.001822]
[1724427692048,0.242221,61848.0,61847.0,0.002822]
[1724427692049,0.254221,61848.0,61847.0,0.002822]
[1724427692250,0.41822398,61848.0,61847.0,0.002822]
[1724427692432,0.74159698,61848.0,61847.0,0.002822]
[1724427692632,0.72959698,61848.0,61847.0,0.001822]
[1724427692843,1.05296998,61848.0,61847.0,0.001822]
[1724427693068,1.05096998,61848.0,61847.0,0.000822]
[1724427693274,0.72859698,61848.0,61847.0,0.001822]
[1724427693897,0.73959698,61848.0,61847.0,0.002822]
[1724427694216,1.17373757,61848.0,61847.0,0.002822]
[1724427694413,1.97453953,61848.0,61847.0,0.002822]
[1724427694730,2.02285933,61848.0,61847.0,0.002822]
[1724427694923,1.58881057,61848.0,61847.0,0.002822]
[1724427695229,1.52736278,61848.0,61847.0,0.002822]
[1724427695461,1.18098978,61848.0,61847.0,0.002822]
[1724427695642,0.48492398,61848.0,61847.0,0.002822]
[1724427695842,0.013635,61848.0,61847.0,0.002822]
[1724427696050,0.175321,61848.0,61847.0,0.002822]
[1724427696254,0.013635,61848.0,61847.0,0.002822]
[1724427696692,0.175321,61848.0,61847.0,0.002822]
[1724427696922,0.498694,61848.0,61847.0,0.002822]
[1724427697105,0.82297121,61848.0,61847.0,0.002822]
[1724427697332,1.31034719,61848.0,61847.0,0.002822]
[1724427697864,1.42375606,61848.0,61847.0,0.002822]
[1724427699063,1.39144719,61848.0,61847.0,0.002822]
[1724427699264,1.39044719,61848.0,61847.0,0.002822]
[1724427699557,1.06607419,61848.0,61847.0,0.002822]
[1724427699967,1.47824719,61848.0,61847.0,0.002822]
[1724427700076,1.52561932,61848.0,61847.0,0.002822]
[1724427700281,1.64122597,61848.0,61847.0,0.002822]
[1724427700492,1.71578417,61848.0,61847.0,0.002822]
[1724427700700,1.76509114,61848.0,61847.0,0.002822]
[1724427700908,1.99390701,61848.0,61847.0,0.002822]
[1724427701112,2.09390701,61848.0,61847.0,0.002822]
[1724427701528,2.41728001,61848.0,61847.0,0.002822]
[1724427701726,2.41728001,61848.0,61828.0,0.000822]
[1724427701727,0.80868,61829.0,61828.0,0.000822]
[1724427701954,1.12578298,61829.0,61828.0,0.000822]
[1724427702156,1.44925498,61829.0,61828.0,0.000822]
[1724427702403,1.60892012,61829.0,61828.0,0.000822]
[1724427702593,1.44725498,61829.0,61828.0,0.000822]
[1724427703127,1.44925498,61829.0,61828.0,0.000822]
[1724427703538,1.44925498,61829.0,61828.0,0.001822]
[1724427703539,1.45725498,61829.0,61828.0,0.001822]
[1724427703741,1.46025498,61829.0,61828.0,0.001822]
[1724427703892,1.48825498,61829.0,61828.0,0.000822]
[1724427704099,1.70061216,61829.0,61828.0,0.000822]
[1724427704493,1.64723376,61829.0,61828.0,0.001822]
[1724427704688,1.4966713,61829.0,61828.0,0.001822]
[1724427704799,1.8201433,61829.0,61828.0,0.001822]
[1724427705217,1.8061433,61829.0,61828.0,0.001822]
[1724427705415,1.8051433,61829.0,61828.0,0.001822]
[1724427705614,1.8051433,61829.0,61828.0,0.000822]
[1724427705615,1.8101433,61829.0,61828.0,0.000822]
[1724427705817,2.04668969,61829.0,61828.0,0.000822]
[1724427706065,2.07200715,61829.0,61828.0,0.000822]
[1724427706238,2.42866835,61829.0,61828.0,0.001822]
[1724427706452,2.52849451,61829.0,61828.0,0.001822]
[1724427706641,2.43191154,61829.0,61828.0,0.001822]
[1724427706884,2.43191154,61829.0,61828.0,0.002822]
[1724427706885,2.42891154,61829.0,61828.0,0.002822]
[1724427707092,2.41091154,61829.0,61828.0,0.000822]
[1724427707220,2.42491154,61829.0,61828.0,0.000822]
[1724427707616,2.75838354,61829.0,61828.0,1e-06]
[1724427707790,2.75838354,61829.0,61805.0,0.000822]
[1724427707791,1.132575,61806.0,61805.0,0.000822]
[1724427708021,1.29857798,61806.0,61805.0,0.000822]
[1724427708343,1.29657798,61806.0,61805.0,0.000822]
[1724427708952,1.29857798,61806.0,61805.0,0.000822]
[1724427709630,1.30157798,61806.0,61805.0,0.000822]
[1724427709803,1.70397098,61806.0,61805.0,0.000822]
[1724427710006,1.84223156,61806.0,61805.0,0.001822]
[1724427710247,1.83923156,61806.0,61805.0,0.000822]
[1724427710594,1.84423156,61806.0,61805.0,0.000822]
[1724427710767,1.95423156,61806.0,61805.0,0.001822]
[1724427711059,1.94323156,61806.0,61805.0,0.001822]
[1724427711469,1.95623156,61806.0,61805.0,0.001822]
[1724427711700,1.95723156,61806.0,61805.0,0.001822]
[1724427711919,1.94823156,61806.0,61805.0,0.000822]
[1724427712435,1.94823156,61806.0,61805.0,0.001822]
[1724427712436,2.28182456,61806.0,61805.0,0.001822]
[1724427713323,1.546585,61801.0,61800.0,0.18514469]
[1724427713529,1.546585,61801.0,61800.0,0.14753716]
[1724427713530,2.28329572,61801.0,61800.0,0.14753716]
[1724427713925,2.60691472,61801.0,61800.0,0.00462225]
[1724427714127,2.60691472,61801.0,61796.0,0.00821]
[1724427714128,1.13774,61797.0,61796.0,0.00821]
[1724427714359,1.82788298,61797.0,61796.0,0.00821]
[1724427714508,1.88848298,61797.0,61796.0,0.00821]
[1724427714855,1.88848298,61797.0,61794.0,0.00821]
[1724427714856,1.217275,61795.0,61794.0,0.00821]
[1724427715060,1.72792798,61795.0,61794.0,0.00821]
[1724427715263,0.163848,61786.0,61785.0,0.00821]
[1724427715474,1.79447094,61786.0,61785.0,0.00821]
[1724427715707,1.85747094,61786.0,61785.0,0.00821]
[1724427715912,2.18316794,61786.0,61785.0,0.00821]
[1724427716118,2.33279115,61786.0,61785.0,0.00821]
[1724427716753,2.75748815,61786.0,61785.0,0.00821]
[1724427717363,1.871921,61783.0,61782.0,0.000823]
[1724427717570,1.83521098,61783.0,61782.0,0.000823]
[1724427717784,1.83521098,61783.0,61770.0,0.000822]
[1724427717785,1.51992696,61772.0,61770.0,0.000822]
[1724427718026,2.15990094,61772.0,61770.0,0.000822]
[1724427718240,2.26190094,61772.0,61770.0,0.000822]
[1724427718470,2.28490094,61772.0,61770.0,0.000822]
[1724427719382,2.28490094,61772.0,61761.0,0.000822]
[1724427719383,1.92833196,61762.0,61761.0,0.000822]
[1724427719589,1.29838298,61762.0,61761.0,0.000822]
[1724427719796,1.74651194,61762.0,61761.0,0.000822]
[1724427720007,1.77051194,61762.0,61761.0,0.000822]
[1724427720215,2.28063494,61762.0,61761.0,0.000822]
[1724427720420,2.28063494,61762.0,61751.0,0.0002]
[1724427720421,1.61059496,61752.0,61751.0,0.0002]
[1724427720641,1.87459794,61752.0,61751.0,0.0002]
[1724427720849,2.19447394,61752.0,61751.0,0.0002]
[1724427721055,1.89459794,61752.0,61751.0,0.0002]
[1724427721681,1.89659794,61752.0,61751.0,0.0002]
[1724427721871,1.39742194,61752.0,61751.0,0.0002]
[1724427722108,1.72029794,61752.0,61751.0,0.0002]
[1724427722307,1.70729794,61752.0,61751.0,0.0002]
[1724427722742,0.97469298,61752.0,61751.0,0.0002]
[1724427722958,0.64981698,61752.0,61751.0,0.001022]
[1724427723198,0.014,61752.0,61751.0,0.961424]
[1724427723439,0.001,61767.0,61758.0,0.161921]
[1724427723651,0.16400298,61765.0,61762.0,0.16191]
[1724427723875,0.16400298,61765.0,61762.0,0.0852]
[1724427724078,0.323762,61774.0,61764.0,0.0631]
[1724427724289,0.083,61780.0,61768.0,0.161896]
[1724427724290,0.16400298,61773.0,61768.0,0.161896]
[1724427724507,0.161889,61771.0,61765.0,0.161903]
[1724427724715,0.161889,61771.0,61764.0,0.0631]
[1724427724716,0.16189,61770.0,61764.0,0.0631]
[1724427724928,0.161893,61769.0,61764.0,0.225006]
[1724427725135,0.16400298,61771.0,61767.0,0.161897]
[1724427725341,0.001,61782.0,61764.0,0.0631]
[1724427725342,0.001,61781.0,61766.0,0.0805]
[1724427725560,0.49229154,61784.0,61766.0,0.0805]
[1724427725561,0.323777,61771.0,61766.0,0.0805]
[1724427725779,0.161888,61771.0,61766.0,0.0805]
[1724427725987,0.323764,61774.0,61766.0,0.0805]
[1724427726213,0.0824,61785.0,61759.0,0.323834]
[1724427726214,4e-05,61786.0,61785.0,0.161851]
[1724427726431,4e-05,61786.0,61785.0,0.1502]
[1724427726641,0.161888,61786.0,61785.0,0.1502]
[1724427727047,4e-05,61786.0,61785.0,0.1502]
[1724427727248,0.161888,61786.0,61785.0,0.1502]
[1724427727859,1.02184268,61786.0,61785.0,0.1502]
[1724427728063,1.02184268,61786.0,61785.0,0.0647]
[1724427728272,0.161864,61780.0,61779.0,0.1487]
[1724427728503,0.54230168,61786.0,61779.0,0.1487]
[1724427728610,0.16400298,61785.0,61780.0,0.161863]
[1724427729069,0.48770698,61785.0,61779.0,0.1487]
[1724427729413,0.161858,61783.0,61779.0,0.1487]
[1724427729645,0.32586098,61783.0,61779.0,0.1487]
[1724427729856,4e-05,61786.0,61780.0,0.161864]
[1724427730054,4e-05,61786.0,61783.0,0.161855]
[1724427730260,0.00204,61786.0,61785.0,0.161851]
[1724427730433,0.00204,61786.0,61785.0,0.571154]
[1724427730593,0.00204,61786.0,61785.0,0.247451]
[1724427730594,4e-05,61786.0,61785.0,0.247451]
[1724427730790,4e-05,61786.0,61785.0,0.571154]
[1724427731017,4e-05,61786.0,61785.0,0.634254]
[1724427731246,4e-05,61786.0,61785.0,0.957957]
[1724427731620,4e-05,61786.0,61785.0,0.634254]
[1724427731841,4e-05,61786.0,61785.0,0.635254]
[1724427732299,4e-05,61786.0,61785.0,0.958957]
[1724427732711,8e-05,61786.0,61785.0,0.958957]
[1724427733165,8e-05,61786.0,61785.0,0.634254]
[1724427733344,8e-05,61786.0,61785.0,0.1527]
[1724427733345,0.00108,61786.0,61785.0,0.1527]
[1724427733544,8e-05,61786.0,61785.0,0.311551]
[1724427733896,0.00108,61786.0,61785.0,0.315551]
[1724427734101,0.162928,61786.0,61785.0,0.1527]
[1724427734304,8e-05,61786.0,61785.0,0.1487]
[1724427734703,0.00108,61786.0,61785.0,0.1537]
[1724427734906,0.00108,61786.0,61785.0,0.639254]
[1724427735034,0.0019853,61786.0,61785.0,0.638254]
[1724427735232,0.0019853,61786.0,61785.0,0.314551]
[1724427735979,0.0009853,61786.0,61785.0,0.634254]
[1724427736138,0.0009853,61786.0,61785.0,0.636254]
[1724427736323,0.0009853,61786.0,61785.0,0.959957]
[1724427736521,0.0009853,61786.0,61785.0,0.957957]
[1724427736721,0.0009853,61786.0,61785.0,0.959957]
[1724427736955,0.0009853,61786.0,61785.0,0.312551]
[1724427737326,0.0009853,61786.0,61785.0,0.636254]
[1724427737684,0.0009853,61786.0,61785.0,0.312551]
[1724427738246,0.0029853,61786.0,61785.0,0.313551]
[1724427738855,0.0029853,61786.0,61785.0,0.311551]
[1724427738969,0.0029853,61786.0,61785.0,0.1497]
[1724427739440,0.0039853,61786.0,61785.0,0.317551]
[1724427739648,0.0039853,61786.0,61785.0,0.641254]
[1724427739900,0.0039853,61786.0,61785.0,2.16209494]
[1724427740134,1e-08,61786.0,61785.0,1.61468894]
[1724427740338,1e-08,61786.0,61785.0,0.2557]
[1724427740540,1e-08,61786.0,61785.0,0.741254]
[1724427740762,0.161812,61800.0,61792.0,0.323666]
[1724427740998,0.16182,61798.0,61792.0,0.161832]
[1724427741263,0.323619,61801.0,61791.0,0.161835]
[1724427741535,0.161826,61795.0,61789.0,0.161839]
[1724427741785,0.32363,61799.0,61791.0,0.161835]
[1724427741968,0.32363,61799.0,61787.0,0.32369]
[1724427741969,0.161824,61796.0,61790.0,0.161837]
[1724427742126,0.161828,61794.0,61788.0,0.161841]
[1724427742328,0.161828,61794.0,61786.0,0.323697]
[1724427742329,0.161828,61794.0,61789.0,0.16184]
[1724427742676,0.161828,61794.0,61789.0,0.007]
[1724427742888,0.80919,61790.0,61789.0,0.007]
[1724427743089,0.161848,61786.0,61785.0,0.0631]
[1724427743305,0.161859,61782.0,61781.0,0.0828]
[1724427743510,0.16400298,61790.0,61781.0,0.0828]
[1724427743511,0.323693,61787.0,61781.0,0.0828]
[1724427743712,0.16400298,61790.0,61781.0,0.0828]
[1724427743913,0.161838,61790.0,61789.0,0.012]
[1724427744039,0.485514,61790.0,61789.0,0.012]
[1724427744251,0.485514,61790.0,61789.0,0.008]
[1724427744462,0.346662,61793.0,61789.0,0.008]
[1724427744463,0.323662,61793.0,61789.0,0.008]
[1724427744660,0.161838,61790.0,61789.0,0.008]
[1724427745080,0.323667,61792.0,61789.0,0.008]
[1724427745354,0.161836,61791.0,61786.0,0.161848]
[1724427745774,0.323668,61792.0,61781.0,0.1058]
[1724427745980,0.161845,61788.0,61784.0,0.161853]
[1724427746226,0.16400298,61791.0,61782.0,0.323716]
[1724427746227,0.161841,61789.0,61785.0,0.161851]
[1724427746427,0.1456,61805.0,61793.0,0.0789]
[1724427746631,0.16400298,61804.0,61793.0,0.0789]
[1724427746837,0.16400298,61804.0,61788.0,0.0789]
[1724427746838,0.001,61802.0,61788.0,0.0789]
[1724427747006,0.323657,61794.0,61789.0,0.001]
[1724427747182,0.161838,61790.0,61789.0,0.001]
[1724427747410,0.323637,61798.0,61788.0,0.0789]
[1724427747411,0.161826,61795.0,61790.0,0.161838]
[1724427747670,0.347611,61803.0,61791.0,0.161835]
[1724427747918,0.323639,61798.0,61793.0,0.001]
[1724427748171,0.48764398,61797.0,61793.0,0.001]
[1724427748466,0.48764398,61797.0,61791.0,0.161835]
[1724427748665,0.323647,61796.0,61788.0,0.0789]
[1724427748839,0.323647,61796.0,61790.0,0.0045708]
[1724427748840,0.161831,61793.0,61790.0,0.0045708]
[1724427749045,0.161833,61792.0,61788.0,0.240742]
[1724427749458,0.16400298,61796.0,61788.0,0.240742]
[1724427749459,0.32582598,61796.0,61792.0,0.161833]
[1724427749792,0.32582598,61796.0,61789.0,0.32368]
[1724427749793,0.161826,61795.0,61789.0,0.323679]
[1724427749984,0.16400298,61796.0,61792.0,0.161833]
[1724427750188,0.326641,61797.0,61792.0,0.161833]
[1724427750189,0.003,61797.0,61795.0,0.161823]
[1724427750590,0.003,61797.0,61795.0,0.161824]
[1724427750789,0.003,61797.0,61794.0,0.161827]
[1724427751093,0.003,61797.0,61788.0,0.08645984]
[1724427751094,0.003,61797.0,61790.0,0.323673]
[1724427751291,0.003,61797.0,61796.0,0.485467]
[1724427751694,0.323606,61804.0,61798.0,0.161816]
[1724427751849,0.323606,61804.0,61796.0,0.323645]
[1724427751850,0.161813,61800.0,61796.0,0.161822]
[1724427752056,0.161815,61799.0,61795.0,0.0638]
[1724427752275,0.16181,61801.0,61795.0,0.0638]
[1724427752475,0.005,61797.0,61796.0,0.161821]
[1724427752678,0.005,61797.0,61796.0,0.485466]
[1724427752840,0.0639,61823.0,61805.0,0.566897]
[1724427753041,0.079,61824.0,61805.0,1.277893]
[1724427753679,0.0005,61825.0,61805.0,1.701491]
[1724427753879,0.0005,61825.0,61805.0,1.377893]
[1724427753880,0.323503,61824.0,61805.0,1.377893]
[1724427754024,0.01404,61806.0,61805.0,1.378893]
[1724427754546,4e-05,61806.0,61805.0,1.377893]
[1724427754985,0.00104,61806.0,61805.0,1.387893]
[1724427755505,0.00104,61806.0,61805.0,0.417099]
[1724427755708,0.00104,61806.0,61805.0,0.740697]
[1724427755909,1e-08,61806.0,61805.0,1.87995507]
[1724427756130,0.00094421,61829.0,61824.0,0.950845]
[1724427756348,0.00144421,61829.0,61828.0,0.161739]
[1724427756544,0.00144421,61829.0,61828.0,0.485217]
[1724427756840,0.00144421,61829.0,61828.0,0.808695]
[1724427757173,0.00144421,61829.0,61828.0,0.485217]
[1724427757388,0.00144421,61829.0,61828.0,0.808695]
[1724427757586,0.00144421,61829.0,61828.0,0.485217]
[1724427757790,0.01044421,61829.0,61828.0,0.486217]
[1724427758056,0.01044421,61829.0,61828.0,0.809695]
[1724427758230,0.01044421,61829.0,61828.0,0.486217]
[1724427758386,0.01044421,61829.0,61828.0,0.81430457]
[1724427758584,0.01044421,61829.0,61828.0,0.49082657]